Cogmind - Beta 16.1 @@@ ROGUE MODE // 2026.02.18 @ 02:18:32 Player: Megaknight51 Result: Destroyed by NF-2W7(R) with Subdweller Beam Cannon Performance ------------- Evolutions (0) 0 Regions Visited (2) 400 Robots Destroyed (21) 105 Value Destroyed (605) 605 Prototype IDs (0) 0 Alien Tech Used (0) 0 Bonus (-36) -36 TOTAL SCORE: 1074 Bonus ------- Friendly Fire -36 Cogmind --------- Core Integrity 0/250 Matter 47/300 Energy 250/250 System Corruption 0% Temperature Cool (9) Movement Rolling (117) Ox1 Location -10/Subcaves Parts ------- > --- POWER (1) -------- Ion Engine > --- PROPULSION (2) --- Compact Wheel Subdweller Monowheel > --- UTILITY (2) ------ Large Storage Unit Seismic Detector > --- WEAPON (2) ------- Subdweller Machine Gun Subdweller Shrapnel Launcher > --- INVENTORY (15) --- Ion Engine Subdweller Power Source Subdweller Power Source Wheel Subdweller Optics Subdweller Optics Subdweller Optics Improved Terrain Scanner Salvaging Laser Salvaging Laser Subdweller Machine Gun Mining Laser Peak State ------------ > --- POWER ------------ Ion Engine > --- PROPULSION ------- Light Treads Wheel > --- UTILITY ---------- Large Storage Unit Improved Terrain Scanner > --- WEAPON ----------- Salvaging Laser Battle Cannon > --- INVENTORY -------- Ion Engine Subdweller Power Source Subdweller Power Source Wheel Compact Wheel Subdweller Monowheel Subdweller Optics Subdweller Optics Subdweller Optics Seismic Detector Salvaging Laser Salvaging Laser Subdweller Machine Gun Subdweller Machine Gun Mining Laser [Rating: 12] Favorites ----------- Power Ion Engine Engine Ion Engine Propulsion Wheel Treads Light Treads Wheel Wheel Utility Large Storage Unit Device Seismic Detector Storage Large Storage Unit Weapon Battle Cannon Energy Gun Salvaging Laser Ballistic Gun Assault Rifle Ballistic Cannon Battle Cannon Launcher Subdweller Shrapnel Launcher Special Weapon Mining Laser Build | -11 -10 -10 ------- Run | Yrd Mat Sub Slots Evolved . | . . . Power . | . . . Propulsion . | . . . Utility . | . . . Weapon . | . . . Parts Attached 22 | 7 1 14 Power 1 | . . 1 Engine 1 | . . 1 Core . | . . . Reactor . | . . . Propulsion 6 | 2 . 4 Treads 1 | . . 1 Leg . | . . . Wheel 5 | 2 . 3 Hover . | . . . Flight . | . . . Utility 5 | 2 1 2 Device 3 | 1 . 2 Storage 2 | 1 1 . Processor . | . . . Hackware . | . . . Protection . | . . . Artifact . | . . . Weapon 10 | 3 . 7 Energy Gun 3 | 1 . 2 Energy Cannon . | . . . Ballistic Gun 4 | 2 . 2 Ballistic Cannon 1 | . . 1 Launcher 1 | . . 1 Special Weapon 1 | . . 1 Impact Weapon . | . . . Slashing Weapon . | . . . Piercing Weapon . | . . . Special Melee Weapon . | . . . Unidentified Prototypes . | . . . Parts Lost 8 | . . 8 Power . | . . . Propulsion 4 | . . 4 Utility 1 | . . 1 Weapon 3 | . . 3 Highest Loss Streak 4 | . . 4 To Critical Strikes . | . . . Average Backups 12 | 4 8 13 Power 2 | 1 2 3 Propulsion 2 | . 1 2 Utility 3 | . 2 3 Weapon 3 | 1 2 4 Tool/Special . | . . . Unused Backups 10 | . . 10 Power 4 | . . 4 Propulsion 1 | . . 1 Utility 4 | . . 4 Weapon 1 | . . 1 Tool/Special . | . . . Average Slot Usage (%) 93 | . 85 93 Engine 10 | . . 11 Treads 6 | . . 6 Wheel 19 | . 28 18 Device 13 | . 14 13 Storage 14 | . 14 14 Energy Gun 5 | . . 6 Ballistic Gun 8 | . 28 7 Ballistic Cannon 7 | . . 8 Launcher 3 | . . 4 Special Weapon 1 | . . 2 Peak Build Rating 12 | 6 7 12 Average Rating 9 | 5 6 10 On Entrance 4 | . 6 7 Avg Prop Armor Cover (%) 11 | . . 11 Naked Turns . | . . . Heaviest Build 38 | 9 24 38 Greatest Support 36 | 26 26 36 Greatest Overweight (x) 3 | 1 . 3 Average Overweight (x) 1 | . . 1 Largest Inventory Capacity 15 | 8 15 15 Average Capacity 14 | 7 11 15 Most Carried 15 | 7 10 15 Average Carried 12 | 4 8 14 Final Capacity 15 | 8 15 15 Final Carried 12 | 7 10 12 Class Distribution -------------------- 53% | Mutant 46% | Scavenger-Mutant Dominant Class ---------------- Mutant | -10/Materials Scavenger-Mutant | -10/Subcaves Resources | -11 -10 -10 ----------- Run | Yrd Mat Sub Matter Collected 738 | 366 46 326 Remotely . | . . . Salvage Created 653 | 208 154 291 Parts 51 | 15 14 22 Haulers Intercepted . | . . . Recyclers Shooed . | . . . Parts Field Recycled . | . . . Retrieved Matter . | . . . Parts Self-Destructed 6 | . . 6 Prevented . | . . . Parts Restored . | . . . Kills | -11 -10 -10 ------- Run | Yrd Mat Sub Combat Hostiles Destroyed 15 | . 4 11 Guns 6 | . 4 2 Cannons 2 | . . 2 AOE 7 | . . 7 Classes Destroyed 7 | 3 2 2 Worker 1 | 1 . . Tunneler 4 | 4 . . Recycler 1 | 1 . . Swarmer 1 | . 1 . Grunt 3 | . 3 . Sentry 1 | . . 1 Subdweller 10 | . . 10 Best Kill Streak 5 | 2 2 5 Combat Bots Only 5 | . 2 5 Max Kills in Single Turn 1 | 1 1 1 Gunslinging . | . . . Exploded 1 | . . 1 Melee . | . . . Uniques/NPCs Destroyed . | . . . Combat | -11 -10 -10 -------- Run | Yrd Mat Sub Hostile Shots Fired 70 | . 5 65 Missed 24 | . 1 23 Hits 46 | . 4 42 Projectile 46 | . 4 42 Critical Strikes 2 | . . 2 Damage Taken 1129 | . 43 1086 Core 262 | . 11 251 Absorbed by Shields . | . . . Core Remaining (%) 100 | 100 . . Volleys Fired 92 | 24 9 59 Largest 2 | 2 2 2 Hottest 100 | 40 40 100 Shots Fired 168 | 48 18 102 Gun 127 | 48 18 61 Cannon 15 | . . 15 Launcher 13 | . . 13 Special 13 | . . 13 Kinetic 142 | 48 18 76 Thermal 26 | . . 26 Explosive . | . . . Electromagnetic . | . . . Robot Hit Streak 13 | 5 3 13 Robot Miss Streak 3 | 3 2 3 Penetration Max . | . . . Secondary Targets 1 | . 1 . Max Gunslinging Chain 1 | . 1 . Shots Hit Robots 107 | 30 10 67 Core Hits 40 | 11 8 21 Critical Kills . | . . . Critical Parts Destroyed 1 | 1 . . Critical Strikes 3 | 1 . 2 Destroy 1 | 1 . . Blast 2 | . . 2 Melee Attacks . | . . . Impact . | . . . Slashing . | . . . Piercing . | . . . Sneak Attacks . | . . . Combat Hostiles . | . . . Follow-up Attacks . | . . . Damage Inflicted 1783 | 301 122 1360 Guns 779 | 301 122 356 Cannons 183 | . . 183 Explosions 821 | . . 821 Melee . | . . . Ramming . | . . . Kinetic 1659 | 301 122 1236 Thermal 124 | . . 124 Explosive . | . . . Electromagnetic . | . . . Impact . | . . . Slashing . | . . . Piercing . | . . . Highest Corruption . | . . . Average Corruption . | . . . Corruption Purged . | . . . Corruption Blocked . | . . . Overload Shots . | . . . Overflow Damage 8 | . . 8 Projectiles . | . . . Explosions 8 | . . 8 Melee . | . . . Knockbacks 1 | . . 1 Impact . | . . . Kinetic . | . . . Secondary 1 | . . 1 Self-Inflicted Damage 120 | . . 120 Shots 5 | . . 5 Rammed . | . . . Targets Rammed . | . . . Kicked . | . . . Crushed . | . . . Highest Temperature 257 | . 1 257 Average Temperature 120 | . 1 137 Received Heat Transfer 447 | . 24 423 Siege Activations . | . . . Martial Activations . | . . . Shielding Activations . | . . . Robots Disrupted . | . . . Combat Hostiles . | . . . Robots Corrupted . | . . . Combat Hostiles . | . . . Parts Fried . | . . . Impact Corruptions . | . . . Robots Melted . | . . . Combat Hostiles . | . . . Parts Melted 2 | . . 2 Heat Transferred 300 | . . 300 Parts Sabotaged . | . . . Parts Stolen . | . . . Parts Stripped . | . . . Power Chain Reactions . | . . . Alert | -11 -10 -10 ------- Run | Yrd Mat Sub Maximum Alert Level . | . . . Low Security (%) 100 | 100 100 . Level 1 . | . . . Level 2 . | . . . Level 3 . | . . . Level 4 . | . . . Level 5 . | . . . High Security . | . . . Max Security . | . . . Peak Influence 70 | 10 70 . Initial . | . . . Average 13 | . 26 . Influence Increases 170 | 30 120 20 Destroy 0b10 Robot/C 100 | . 80 20 Destroy 0b10 Robot/NC 30 | 30 . . Destroy Leader 10 | . 10 . Select Force Hacks 30 | . 30 . Influence Decreases 170 | 30 60 80 Entered New Map 29 | . . 29 Time Decay 131 | 30 60 41 Lost Part 10 | . . 10 Squads Dispatched 3 | . 3 . Investigation 2 | . 2 . Extermination . | . . . Reinforcement 1 | . 1 . Assault . | . . . Garrison . | . . . Intercept . | . . . Searches Triggered . | . . . Construction Impeded . | . . . Haulers Reinforced . | . . . Active Scanning Responses . | . . . Cargo Convoy Interrupts . | . . . Stealth | -11 -10 -10 --------- Run | Yrd Mat Sub Distress Signals 1 | . 1 . Communications Jammed . | . . . Distress Signals . | . . . Times Spotted 27 | . 13 14 Peak Tracking Total 3 | . 3 3 Tactical Retreats 1 | . . 1 Traps | -11 -10 -10 ------- Run | Yrd Mat Sub Traps Triggered . | . . . Indirectly . | . . . Trap Hack Attempts . | . . . Triggered . | . . . Disarmed . | . . . Reprogrammed . | . . . Reused . | . . . Traps Extracted . | . . . Installed . | . . . Triggered . | . . . Machines | -11 -10 -10 ---------- Run | Yrd Mat Sub Machines Disabled . | . . . Max in Single Turn . | . . . Machines Repaired . | . . . Machines Dismantled . | . . . Machines Sabotaged . | . . . Overloaded Fab Kills . | . . . Hacking | -11 -10 -10 --------- Run | Yrd Mat Sub Machines Accessed 1 | . 1 . Terminals . | . . . Fabricators . | . . . Repair Stations . | . . . Recycling Units 1 | . 1 . Scanalyzers . | . . . Garrison Access . | . . . Total Hacks 1 | . 1 . Successful 1 | . 1 . Failed . | . . . Catastrophic . | . . . Database Lockouts . | . . . Manual 1 | . 1 . Terminals . | . . . Fabricators . | . . . Repair Stations . | . . . Recycling Units 1 | . 1 . Scanalyzers . | . . . Garrison Access . | . . . Terminal Hacks . | . . . Fabricator Hacks . | . . . Repair Station Hacks . | . . . Recycling Unit Hacks . | . . . Scanalyzer . | . . . Garrison Access Hacks . | . . . Unauthorized Hacks 1 | . 1 . Terminals . | . . . Fabricators . | . . . Repair Stations . | . . . Recycling Units 1 | . 1 . Tunnel 1 | . 1 . Scanalyzers . | . . . Garrison Access . | . . . Data Cores Recovered . | . . . Used . | . . . Hacking Detections . | . . . Full Trace Events . | . . . Feedback Events . | . . . Feedback Blocked . | . . . Robot Schematics Acquired . | . . . Robots Built . | . . . Authchips . | . . . Time . | . . . Total Robot Build Rating . | . . . Part Schematics Acquired . | . . . Parts Built . | . . . Authchips . | . . . Time . | . . . Total Part Build Rating . | . . . Part Studies Acquired . | . . . Parts Repaired . | . . . Time . | . . . Parts Recycled . | . . . Recycled Matter . | . . . Retrieved Matter . | . . . Retrieved Components . | . . . Parts Scanalyzed . | . . . Part Schematics Acquired . | . . . Parts Damaged . | . . . Bothacking | -11 -10 -10 ------------ Run | Yrd Mat Sub Used RIF Installer . | . . . Robots Hacked . | . . . Non-combat . | . . . Combat . | . . . Robot Hacks Applied . | . . . Relay Couplers Released . | . . . Fabnet Peak Effective % . | . . . Robots Rewired . | . . . Allies Hacked . | . . . Hacks Repelled . | . . . Allies | -11 -10 -10 -------- Run | Yrd Mat Sub Total Allies . | . . . Largest Group . | . . . Highest-Rated Group . | . . . Highest-Rated Ally . | . . . Total Orders . | . . . Ally Attacks . | . . . Total Damage . | . . . Kills . | . . . Allies Corrupted . | . . . Allies Melted . | . . . Intel | -11 -10 -10 ------- Run | Yrd Mat Sub Active Infowar (turns) 2519 | 133 217 2169 Terrain 473 | . . 473 Seismic 2046 | 133 217 1696 Robot Analysis Total . | . . . Derelict Logs Recovered 1 | . . 1 Drone Launches . | . . . Drone Recoveries . | . . . Exploration | -11 -10 -10 ------------- Run | Yrd Mat Sub Turns Passed 2721 | 227 217 2277 Spaces Moved 1522 | 160 180 1182 Core 5 | 5 . . Treads 4 | . . 4 Legs . | . . . Wheels 1513 | 155 180 1178 Hover . | . . . Flight . | . . . Fastest Speed 50 | 50 90 90 Average Speed 108 | 89 90 114 Slowest Speed 240 | 100 90 240 Overloaded Moves . | . . . Propulsion Burnouts . | . . . Robots Hopped . | . . . Potential Cave-ins . | . . . Cave-ins Triggered . | . . . Exploration Rate (%) 23 | 4 37 30 Regions Visited 2 Branch Regions 1 Pre-discovered Areas 1 | . 1 . Known Exits Taken . | . . . Unknown Exits Taken 2 | 1 1 . Scrap Searched 3 | . . 3 Spaces Dug . | . . . Terrain Destroyed 162 | . . 162 Melee . | . . . Projectile 1 | . . 1 AOE 161 | . . 161 Terrain Rammed . | . . . Walls Destroyed . | . . . Machines Disabled . | . . . Actions | -11 -10 -10 --------- Run | Yrd Mat Sub Total 2405 | 197 219 1989 Wait 732 | . 26 706 Move 1520 | 159 179 1182 Hop . | . . . Pick Up 26 | 7 3 16 Fast Attach 6 | 6 . . Attach 9 | . . 9 Detach . | . . . Swap 12 | 1 1 10 Drop 8 | . 1 7 Fire 92 | 24 9 59 Melee . | . . . Ram . | . . . Kick . | . . . Crush . | . . . Escape Stasis . | . . . Rewire . | . . . Trap . | . . . Miscellaneous . | . . . Route ------- -11/Scrapyard -10/Materials (discovered 2 exits: [*Min] / [*Sub]) -10/Subcaves History --------- Turn | Location | Event 10 | -11/Scrapyard | Discovered new exit (range 16) 228 | -11/Scrapyard | Entered Materials 229 | -10/Materials | Met a group of wandering Federalists 305 | -10/Materials | Build established: Mutant 329 | -10/Materials | Discovered new exit (range 16) 444 | -10/Materials | Discovered new exit (range 3) 445 | -10/Materials | Entered Subcaves 445 | -10/Subcaves | Accompanied by 2 allies 446 | -10/Subcaves | Ambushed by Subdwellers from Twisted Machinery 446 | -10/Subcaves | Continued accompanying wandering Federalists (4) 446 | -10/Subcaves | Approached by a straggling Scientist 490 | -10/Subcaves | Lost 4 allies 683 | -10/Subcaves | Shifting Twisted Machinery released Piercing Trap 692 | -10/Subcaves | Shifting Twisted Machinery released Lgt. Humpback 761 | -10/Subcaves | Core integrity fell below 50% 803 | -10/Subcaves | Lost 4 parts (1n1u2w) 1153 | -10/Subcaves | Build established: Scavenger-Mutant 1999 | -10/Subcaves | Core integrity fell below 20% 2062 | -10/Subcaves | Build established: Mutant 2164 | -10/Subcaves | Ambushed by Subdweller buried in earth 2167 | -10/Subcaves | Ambushed by Subdweller buried in earth 2203 | -10/Subcaves | Lost 3 parts (2n1w) 2722 | -10/Subcaves | Destroyed by NF-2W7(R) with Subdweller Beam Cannon Last Messages --------------- 02106_ Acquired 14 matter. 02150_ HR-4TM(R): "NAT20!" 02164_ DL-9H2(R) destroyed. 02165_ ZL-ZKO(R): "ARGHSUB!" 02166_ Lgt. Treads destroyed. 02167_ HR-4TM(R) Disposable Heat Sink blasted off. 02168_ CA-LBU(R): "ARGHSUB!" 02172_ Battle Cannon destroyed. 02172_ Wheel destroyed. 02173_ Destroyed Sub. Power Source. 02173_ CA-LBU(R) destroyed. 02175_ HR-4TM(R) destroyed. 02177_ ZL-ZKO(R) destroyed. 02187_ Acquired 18 matter. 02196_ Acquired 12 matter. 02222_ 5S-ARI(u) deconstructs Twisted Machinery. 02262_ 5S-ARI(u) builds Twisted Machinery. 02315_ NF-2W7(R): "ECOKILL!" 02443_ 5S-ARI(u) builds Twisted Machinery. 02450_ Subatomizers dissect the Wheel. Map ----- +----------------------------------------------------+ | ????????????????????????????# ???????????????????? | | ????????????????????????????? ???????????????????? | | ??????????????????????#???????"??????????????????? | | ???????????????????????"??????? ?????????????????? | | ???????????????????????# ?????? ###??????????????? | | ??????????????????????## ????? # ###???????????? | | ???????###???[!%??? # % "?????? #???????????? | | ??????? ??? &##?? /* "?????# #???????????? | | ? ??? ??? #? # # "%#????# ###?????????? | | ?? ?? ?## ## &% ###?## ## ####??????? | | ?? ? ?# | "### ## ##?????? | | ?? ? ## #???# " "#" " #?????? | | ?? ?? ## / #???### " """ "" #?????? | | ?? ?# ??????##"" " "" ##?????? | | ??? ## ?????????## # ## """#??????? | | ???? #??????????# ####### """##?????? | | ????? #???????????# """#???## ""%#?????? | | ??????? #????????????# " "##???# "##?????? | | ????????# #????????????## "##??# ##??????? | | ????????# #????????####### "" #######???????? | | ????????## ##??????##;;;;;; ## # #???????? | | ?????????# ##?????#; ;;R ##???????? | | ????###?## ###?### " #???????? | | ???## #?# ### ;; # " ##???????? | | ??## #?# ### ### ;;;# ### ""#????????? | | ?## #?# #### ### @ ;#??# ## " ##???????? | | ## #### ### ## ##??## ###" #???????? | | ### ## ## ##????#####" "##???????? | | ### ##??????### " "##???????? | | ### #???????# " ###?????? | | ### #" #???????## ""#?????? | | #?##### ### " #????????# " #?????? | | ??????## #### #????????# " #?????? | | #?????## #?# #????????# """ "#?????? | | #####?# #?# & ##???????# " #?????? | | #?## #?## #???????## #?????? | | #??# #??##" & ! ##???????## #?????? | | ##??# #???# #???????# ##?????? | | ##???# ##??#" #??????## ##??????? | | ##???# #?### ######## ##??????? | | ##??# #### ## ## ## #??????? | | #??## ### # ### ##?????? | | # #???### * # ##?# #?????? | | ## ##????# ! # # ##??## ##?????? | | ###??#####" ! # ##?????##??????? | | #??????#" # # #?????????????? | | #?????## #### # ###?????????????? | | ## #?????# ##???????????????? | | ?# ###???# ##??????????????? | | ?# #???## """"" ## #??????????????? | +----------------------------------------------------+ Best States ------------- Heat Dissipation 25 Energy Generation 10 Energy Capacity 250 Matter Stores 300 Matter Capacity 300 Sight Range 16 Terrain Scan Range 16 Terrain Scan Density 10 Evasion (%) 44 Recoil Reduction 1 Item Schematics ----------------- None Robot Schematics ------------------ None Fabricated ------------ Nothing Repaired ---------- Nothing Studied --------- None Alien Tech Used ----------------- None Achievements -------------- None Challenges ------------ None Game ------ Seed OpticalAntimatterDrillbomb Manual? 0 Play Time 00:18:19 Cumulative 87.7 hours Start 2026.02.18 @ 02:06:25 End 2026.02.18 @ 02:18:32 Sessions 1 Manual Loads 0 Difficulty Rogue Special Mode None Game No. 181 Rogue 181 Adventurer 0 Explorer 0 Win Type - Total 1 Types 1/0/0/0/0/0/0/0/0/0 Lore% 50 Gallery% 38 Achievement% 38 Wizard Run 0 Options --------- Layout 0 ASCII 0 Keyboard 1 Movement Arrows Keybinds 0 Fullscreen 1 Font 18/Smallcaps Map View 76x50 Zoom Use 47% Tactical HUD 1 Map Filters NONE Filters NONE Steam 1 RUN: 922a687b-b9f5-42ad-9b12-71776edb95c9